[Event "Titled Tuesday Blitz October 11 Late 2022"]
[White "Talibov, Shiroghlan"]
[Black "Ibarra Jerez, Jose Carlos"]
[WhiteFideId "13429078"]
[BlackFideId "2226332"]
[WhiteElo "2242"]
[BlackElo "2627"]
[Result "0-1"]
[Round "04"]
[TimeControl "180+1"]
[Date "2022.10.11"]
[WhiteClock "0:00:05"]
[BlackClock "0:01:02"]

1. c4 {[%clk 0:03:00]}  e5 {[%clk 0:02:59]} 2. Nc3 {[%clk 0:03:00]}  Nc6 {[%clk 0:03:00]} 3. g3 {[%clk 0:02:53]}  Bc5 {[%clk 0:02:59]} 4. Bg2 {[%clk 0:02:52]}  d6 {[%clk 0:02:59]} 5. e3 {[%clk 0:02:52]}  a6 {[%clk 0:03:00]} 6. Nge2 {[%clk 0:02:51]}  Ba7 {[%clk 0:03:00]} 7. d4 {[%clk 0:02:51]}  exd4 {[%clk 0:03:00]} 8. Nxd4 {[%clk 0:02:49]}  Nxd4 {[%clk 0:02:56]} 9. exd4 {[%clk 0:02:50]}  Ne7 {[%clk 0:02:57]} 10. O-O {[%clk 0:02:48]}  O-O {[%clk 0:02:56]} 11. Re1 {[%clk 0:02:45]}  Nf5 {[%clk 0:02:57]} 12. d5 {[%clk 0:02:43]}  Bd7 {[%clk 0:02:57]} 13. Qd3 {[%clk 0:02:35]}  Qf6 {[%clk 0:02:41]} 14. Ne4 {[%clk 0:02:12]}  Qd4 {[%clk 0:02:40]} 15. Qxd4 {[%clk 0:02:07]}  Nxd4 {[%clk 0:02:40]} 16. Rb1 {[%clk 0:01:48]}  b5 {[%clk 0:02:39]} 17. b3 {[%clk 0:01:45]}  Rfe8 {[%clk 0:02:32]} 18. Bb2 {[%clk 0:01:44]}  bxc4 {[%clk 0:02:12]} 19. bxc4 {[%clk 0:01:41]}  Bf5 {[%clk 0:02:12]} 20. Kf1 {[%clk 0:01:30]}  Rab8 {[%clk 0:01:47]} 21. Bxd4 {[%clk 0:01:06]}  Bxd4 {[%clk 0:01:46]} 22. Rb3 {[%clk 0:01:04]}  h6 {[%clk 0:01:39]} 23. Nd2 {[%clk 0:00:52]}  Rxe1+ {[%clk 0:01:30]} 24. Kxe1 {[%clk 0:00:53]}  Re8+ {[%clk 0:01:30]} 25. Kf1 {[%clk 0:00:47]}  Bc2 {[%clk 0:01:30]} 26. Ra3 {[%clk 0:00:38]}  a5 {[%clk 0:01:18]} 27. Bf3 {[%clk 0:00:10]}  a4 {[%clk 0:01:09]} 28. Be2 {[%clk 0:00:09]}  Bc5 {[%clk 0:01:04]} 29. Rc3 {[%clk 0:00:08]}  Bf5 {[%clk 0:01:05]} 30. Rf3 {[%clk 0:00:05]}  Bh3+ {[%clk 0:01:02]} 31. Ke1 {[%clk 0:00:05]}  Bg4 {[%clk 0:01:02]} 0-1


[Site "https://www.chess.com"]

[Event "Titled Tuesday Blitz October 11 Late 2022"]
[White "Tan, Ralph"]
[Black "Shapiro, Daniel"]
[WhiteFideId "30966590"]
[BlackFideId "2001780"]
[WhiteElo "2059"]
[BlackElo "2214"]
[Result "0-1"]
[Round "04"]
[TimeControl "180+1"]
[Date "2022.10.12"]
[WhiteClock "0:00:19"]
[BlackClock "0:00:04"]

1. Nf3 {[%clk 0:03:00]}  Nf6 {[%clk 0:02:59]} 2. g3 {[%clk 0:03:01]}  d5 {[%clk 0:02:59]} 3. Bg2 {[%clk 0:03:01]}  e6 {[%clk 0:02:59]} 4. O-O {[%clk 0:03:01]}  Be7 {[%clk 0:03:00]} 5. d4 {[%clk 0:03:01]}  O-O {[%clk 0:02:54]} 6. c3 {[%clk 0:03:01]}  Nbd7 {[%clk 0:02:51]} 7. b3 {[%clk 0:03:00]}  b6 {[%clk 0:02:47]} 8. Bb2 {[%clk 0:03:00]}  Bb7 {[%clk 0:02:47]} 9. Nbd2 {[%clk 0:03:00]}  c5 {[%clk 0:02:46]} 10. e3 {[%clk 0:02:57]}  a5 {[%clk 0:02:44]} 11. Re1 {[%clk 0:02:47]}  h6 {[%clk 0:02:44]} 12. c4 {[%clk 0:02:47]}  Ne4 {[%clk 0:02:21]} 13. cxd5 {[%clk 0:02:26]}  exd5 {[%clk 0:02:21]} 14. Nxe4 {[%clk 0:02:25]}  dxe4 {[%clk 0:02:20]} 15. Nd2 {[%clk 0:02:25]}  f5 {[%clk 0:02:18]} 16. Nc4 {[%clk 0:02:22]}  Qc7 {[%clk 0:02:15]} 17. Rc1 {[%clk 0:02:16]}  Bf6 {[%clk 0:02:14]} 18. Qd2 {[%clk 0:02:05]}  Rad8 {[%clk 0:01:57]} 19. Red1 {[%clk 0:01:52]}  Ne5 {[%clk 0:01:24]} 20. Nxe5 {[%clk 0:01:48]}  Bxe5 {[%clk 0:01:24]} 21. Qe2 {[%clk 0:01:48]}  Bd6 {[%clk 0:01:14]} 22. a3 {[%clk 0:01:40]}  Qe7 {[%clk 0:01:10]} 23. Qb5 {[%clk 0:01:35]}  cxd4 {[%clk 0:01:00]} 24. Bxd4 {[%clk 0:01:21]}  Bxa3 {[%clk 0:00:57]} 25. Rb1 {[%clk 0:01:18]}  Bc5 {[%clk 0:00:55]} 26. Bc3 {[%clk 0:01:06]}  Qc7 {[%clk 0:00:49]} 27. Rxd8 {[%clk 0:00:52]}  Rxd8 {[%clk 0:00:47]} 28. Be1 {[%clk 0:00:52]}  Bc6 {[%clk 0:00:41]} 29. Qc4+ {[%clk 0:00:52]}  Bd5 {[%clk 0:00:41]} 30. Qb5 {[%clk 0:00:51]}  Qc6 {[%clk 0:00:40]} 31. Qe2 {[%clk 0:00:49]}  Bf7 {[%clk 0:00:36]} 32. g4 {[%clk 0:00:44]}  g6 {[%clk 0:00:33]} 33. Rd1 {[%clk 0:00:28]}  Rxd1 {[%clk 0:00:31]} 34. Qxd1 {[%clk 0:00:29]}  Qd5 {[%clk 0:00:32]} 35. Qa1 {[%clk 0:00:25]}  Qxb3 {[%clk 0:00:27]} 36. gxf5 {[%clk 0:00:21]}  gxf5 {[%clk 0:00:25]} 37. Qf6 {[%clk 0:00:21]}  Qd1 {[%clk 0:00:23]} 38. Qxf5 {[%clk 0:00:12]}  Qxe1+ {[%clk 0:00:22]} 39. Bf1 {[%clk 0:00:12]}  Qb1 {[%clk 0:00:16]} 40. Kg2 {[%clk 0:00:11]}  a4 {[%clk 0:00:15]} 41. Ba6 {[%clk 0:00:11]}  a3 {[%clk 0:00:13]} 42. Bb7 {[%clk 0:00:10]}  Qb3 {[%clk 0:00:13]} 43. Bxe4 {[%clk 0:00:09]}  a2 {[%clk 0:00:12]} 44. Qh7+ {[%clk 0:00:09]}  Kf8 {[%clk 0:00:12]} 45. Qxh6+ {[%clk 0:00:09]}  Ke8 {[%clk 0:00:12]} 46. Qc6+ {[%clk 0:00:08]}  Kf8 {[%clk 0:00:11]} 47. Qh6+ {[%clk 0:00:08]}  Ke7 {[%clk 0:00:11]} 48. Qg5+ {[%clk 0:00:08]}  Kd6 {[%clk 0:00:10]} 49. Qf6+ {[%clk 0:00:08]}  Be6 {[%clk 0:00:10]} 50. Qf4+ {[%clk 0:00:08]}  Kd7 {[%clk 0:00:09]} 51. Qb8 {[%clk 0:00:09]}  a1=Q {[%clk 0:00:08]} 52. Qb7+ {[%clk 0:00:09]}  Ke8 {[%clk 0:00:06]} 53. Qb8+ {[%clk 0:00:10]}  Ke7 {[%clk 0:00:06]} 54. Qc7+ {[%clk 0:00:10]}  Bd7 {[%clk 0:00:05]} 55. Qf4 {[%clk 0:00:10]}  Qe6 {[%clk 0:00:04]} 56. h4 {[%clk 0:00:09]}  Qaf6 {[%clk 0:00:03]} 57. Qg3 {[%clk 0:00:09]}  Qff7 {[%clk 0:00:02]} 58. Bf3 {[%clk 0:00:09]}  Qef6 {[%clk 0:00:02]} 59. Qf4 {[%clk 0:00:09]}  Bd6 {[%clk 0:00:02]} 60. Qe4+ {[%clk 0:00:08]}  Q6e6 {[%clk 0:00:02]} 61. Qa8 {[%clk 0:00:09]}  Qe5 {[%clk 0:00:02]} 62. Qe4 {[%clk 0:00:10]}  Qxe4 {[%clk 0:00:02]} 63. Bxe4 {[%clk 0:00:11]}  Be5 {[%clk 0:00:02]} 64. Kf1 {[%clk 0:00:12]}  Bf6 {[%clk 0:00:02]} 65. Bf3 {[%clk 0:00:13]}  Bxh4 {[%clk 0:00:03]} 66. Ke2 {[%clk 0:00:13]}  Bg5 {[%clk 0:00:03]} 67. Bg4 {[%clk 0:00:13]}  Bf6 {[%clk 0:00:04]} 68. Bf3 {[%clk 0:00:14]}  Be5 {[%clk 0:00:04]} 69. e4 {[%clk 0:00:15]}  Bd6 {[%clk 0:00:05]} 70. e5 {[%clk 0:00:16]}  Bc5 {[%clk 0:00:05]} 71. Bg4 {[%clk 0:00:17]}  Qd5 {[%clk 0:00:05]} 72. f4 {[%clk 0:00:18]}  Qe4+ {[%clk 0:00:04]} 73. Kf1 {[%clk 0:00:17]}  Qxf4+ {[%clk 0:00:05]} 74. Bf3 {[%clk 0:00:18]}  Qxf3+ {[%clk 0:00:05]} 75. Ke1 {[%clk 0:00:19]}  Bb4# {[%clk 0:00:04]} 0-1


[Site "https://www.chess.com"]

[Event "Titled Tuesday Blitz October 11 Late 2022"]
[White "Tari, Aryan"]
[Black "Vrbljanac, Aleksandar"]
[WhiteFideId "1510045"]
[BlackFideId "932817"]
[WhiteElo "2612"]
[BlackElo "2309"]
[Result "0-1"]
[Round "04"]
[TimeControl "180+1"]
[Date "2022.10.11"]
[WhiteClock "0:00:05"]
[BlackClock "0:00:03"]

1. d4 {[%clk 0:02:53]}  d5 {[%clk 0:02:59]} 2. Nf3 {[%clk 0:02:51]}  Nf6 {[%clk 0:02:59]} 3. Bf4 {[%clk 0:02:51]}  c5 {[%clk 0:02:59]} 4. e3 {[%clk 0:02:51]}  Nc6 {[%clk 0:03:00]} 5. Nbd2 {[%clk 0:02:48]}  cxd4 {[%clk 0:02:59]} 6. exd4 {[%clk 0:02:48]}  Bg4 {[%clk 0:03:00]} 7. c3 {[%clk 0:02:47]}  e6 {[%clk 0:02:59]} 8. Qb3 {[%clk 0:02:46]}  Qc8 {[%clk 0:02:55]} 9. h3 {[%clk 0:02:40]}  Bf5 {[%clk 0:02:42]} 10. g4 {[%clk 0:02:16]}  Bg6 {[%clk 0:02:42]} 11. Ne5 {[%clk 0:02:16]}  Be7 {[%clk 0:02:25]} 12. h4 {[%clk 0:01:55]}  Nxe5 {[%clk 0:01:52]} 13. Bxe5 {[%clk 0:01:53]}  Nxg4 {[%clk 0:01:45]} 14. Bxg7 {[%clk 0:01:14]}  Rg8 {[%clk 0:01:45]} 15. Bb5+ {[%clk 0:01:12]}  Kd8 {[%clk 0:01:44]} 16. h5 {[%clk 0:01:13]}  Bf5 {[%clk 0:01:09]} 17. h6 {[%clk 0:01:09]}  a6 {[%clk 0:01:06]} 18. Be2 {[%clk 0:01:08]}  Qc7 {[%clk 0:00:55]} 19. Nf3 {[%clk 0:00:59]}  Be4 {[%clk 0:00:43]} 20. Rg1 {[%clk 0:00:39]}  Nf6 {[%clk 0:00:25]} 21. Ne5 {[%clk 0:00:36]}  Ke8 {[%clk 0:00:20]} 22. O-O-O {[%clk 0:00:25]}  Nd7 {[%clk 0:00:13]} 23. Bh5 {[%clk 0:00:19]}  Bg6 {[%clk 0:00:12]} 24. Nxg6 {[%clk 0:00:14]}  fxg6 {[%clk 0:00:12]} 25. Bxg6+ {[%clk 0:00:14]}  hxg6 {[%clk 0:00:13]} 26. h7 {[%clk 0:00:14]}  Kf7 {[%clk 0:00:11]} 27. hxg8=Q+ {[%clk 0:00:14]}  Rxg8 {[%clk 0:00:12]} 28. Bh6 {[%clk 0:00:14]}  g5 {[%clk 0:00:12]} 29. Qc2 {[%clk 0:00:13]}  Qf4+ {[%clk 0:00:11]} 30. Kb1 {[%clk 0:00:14]}  Rg6 {[%clk 0:00:10]} 31. Rh1 {[%clk 0:00:13]}  Qf5 {[%clk 0:00:10]} 32. Qxf5+ {[%clk 0:00:13]}  exf5 {[%clk 0:00:11]} 33. f4 {[%clk 0:00:14]}  g4 {[%clk 0:00:09]} 34. Rdf1 {[%clk 0:00:11]}  Bd6 {[%clk 0:00:05]} 35. Bg5 {[%clk 0:00:11]}  Nf8 {[%clk 0:00:05]} 36. Kc2 {[%clk 0:00:08]}  Ne6 {[%clk 0:00:06]} 37. Rh7+ {[%clk 0:00:08]}  Rg7 {[%clk 0:00:07]} 38. Rh5 {[%clk 0:00:08]}  Kg6 {[%clk 0:00:05]} 39. Rh6+ {[%clk 0:00:08]}  Kf7 {[%clk 0:00:05]} 40. Rf6+ {[%clk 0:00:09]}  Ke7 {[%clk 0:00:06]} 41. Rxf5+ {[%clk 0:00:09]}  Kd7 {[%clk 0:00:05]} 42. Rg1 {[%clk 0:00:09]}  Kc6 {[%clk 0:00:03]} 43. Rxg4 {[%clk 0:00:09]}  Nxf4 {[%clk 0:00:04]} 44. Rf6 {[%clk 0:00:07]}  Nh3 {[%clk 0:00:02]} 45. Rh4 {[%clk 0:00:06]}  Nxg5 {[%clk 0:00:02]} 46. Rf5 {[%clk 0:00:06]}  Ne4 {[%clk 0:00:03]} 47. c4 {[%clk 0:00:06]}  Rg2+ {[%clk 0:00:03]} 48. Kb3 {[%clk 0:00:06]}  Nd2+ {[%clk 0:00:02]} 49. Ka4 {[%clk 0:00:05]}  Nxc4 {[%clk 0:00:02]} 50. Kb3 {[%clk 0:00:05]}  Rxb2+ {[%clk 0:00:02]} 51. Kc3 {[%clk 0:00:06]}  Bb4+ {[%clk 0:00:02]} 52. Kd3 {[%clk 0:00:05]}  Rd2# {[%clk 0:00:03]} 0-1


[Site "https://www.chess.com"]

[Event "Titled Tuesday Blitz October 11 Late 2022"]
[White "Tarnowska, Aleksandra"]
[Black "Izuzquiza Gonzalez, Javier"]
[WhiteFideId "1180967"]
[BlackFideId "3101029"]
[WhiteElo "1776"]
[BlackElo "2034"]
[Result "1-0"]
[Round "04"]
[TimeControl "180+1"]
[Date "2022.10.12"]
[WhiteClock "0:00:16"]
[BlackClock "0:00:13"]

1. e4 {[%clk 0:03:00]}  c5 {[%clk 0:02:57]} 2. Nf3 {[%clk 0:03:00]}  e6 {[%clk 0:02:56]} 3. c4 {[%clk 0:02:56]}  Nc6 {[%clk 0:02:53]} 4. Nc3 {[%clk 0:02:56]}  a6 {[%clk 0:02:53]} 5. d4 {[%clk 0:02:56]}  cxd4 {[%clk 0:02:53]} 6. Nxd4 {[%clk 0:02:57]}  Nge7 {[%clk 0:02:53]} 7. Be3 {[%clk 0:02:56]}  g6 {[%clk 0:02:51]} 8. Be2 {[%clk 0:02:31]}  Bg7 {[%clk 0:02:51]} 9. O-O {[%clk 0:02:32]}  O-O {[%clk 0:02:50]} 10. Rc1 {[%clk 0:02:29]}  d6 {[%clk 0:02:40]} 11. Nb3 {[%clk 0:02:15]}  Qc7 {[%clk 0:02:32]} 12. Qd2 {[%clk 0:01:50]}  Rd8 {[%clk 0:02:31]} 13. Bh6 {[%clk 0:01:47]}  Bd7 {[%clk 0:02:03]} 14. Rfd1 {[%clk 0:01:42]}  Be8 {[%clk 0:02:02]} 15. Bxg7 {[%clk 0:01:22]}  Kxg7 {[%clk 0:02:02]} 16. Qf4 {[%clk 0:01:19]}  Ne5 {[%clk 0:01:53]} 17. Nb1 {[%clk 0:00:52]}  b6 {[%clk 0:01:41]} 18. N1d2 {[%clk 0:00:52]}  Rac8 {[%clk 0:01:39]} 19. Nf3 {[%clk 0:00:52]}  Nxf3+ {[%clk 0:01:28]} 20. Qxf3 {[%clk 0:00:46]}  Nc6 {[%clk 0:01:28]} 21. Qe3 {[%clk 0:00:37]}  Ne5 {[%clk 0:00:56]} 22. f4 {[%clk 0:00:35]}  Nd7 {[%clk 0:00:57]} 23. f5 {[%clk 0:00:35]}  a5 {[%clk 0:00:49]} 24. Rf1 {[%clk 0:00:34]}  f6 {[%clk 0:00:20]} 25. fxe6 {[%clk 0:00:33]}  Ne5 {[%clk 0:00:19]} 26. Qf4 {[%clk 0:00:31]}  Qe7 {[%clk 0:00:20]} 27. Nd4 {[%clk 0:00:31]}  Nc6 {[%clk 0:00:13]} 28. Rfd1 {[%clk 0:00:21]}  Nxd4 {[%clk 0:00:13]} 29. Rxd4 {[%clk 0:00:22]}  Qxe6 {[%clk 0:00:13]} 30. Rcd1 {[%clk 0:00:23]}  Rc6 {[%clk 0:00:12]} 31. b3 {[%clk 0:00:22]}  Qe5 {[%clk 0:00:12]} 32. Qxe5 {[%clk 0:00:19]}  fxe5 {[%clk 0:00:13]} 33. R4d3 {[%clk 0:00:20]}  h5 {[%clk 0:00:12]} 34. h3 {[%clk 0:00:19]}  Kf6 {[%clk 0:00:13]} 35. g4 {[%clk 0:00:20]}  Ke6 {[%clk 0:00:12]} 36. Kg2 {[%clk 0:00:19]}  Bf7 {[%clk 0:00:12]} 37. Rf3 {[%clk 0:00:19]}  Rf8 {[%clk 0:00:13]} 38. Rdf1 {[%clk 0:00:19]}  Rc7 {[%clk 0:00:13]} 39. Rf6+ {[%clk 0:00:19]}  Ke7 {[%clk 0:00:13]} 40. gxh5 {[%clk 0:00:19]}  gxh5 {[%clk 0:00:13]} 41. Kh2 {[%clk 0:00:18]}  Ke8 {[%clk 0:00:10]} 42. Bxh5 {[%clk 0:00:18]}  Re7 {[%clk 0:00:11]} 43. Bxf7+ {[%clk 0:00:18]}  Rexf7 {[%clk 0:00:12]} 44. Rxf7 {[%clk 0:00:18]}  Rxf7 {[%clk 0:00:12]} 45. Rxf7 {[%clk 0:00:18]}  Kxf7 {[%clk 0:00:13]} 46. Kg3 {[%clk 0:00:19]}  Kg6 {[%clk 0:00:14]} 47. Kg4 {[%clk 0:00:19]}  Kf6 {[%clk 0:00:13]} 48. h4 {[%clk 0:00:19]}  Kg6 {[%clk 0:00:13]} 49. h5+ {[%clk 0:00:19]}  Kf6 {[%clk 0:00:13]} 50. Kh4 {[%clk 0:00:18]}  Kf7 {[%clk 0:00:13]} 51. Kg5 {[%clk 0:00:18]}  Kg7 {[%clk 0:00:13]} 52. Kf5 {[%clk 0:00:16]} 1-0


[Site "https://www.chess.com"]

[Event "Titled Tuesday Blitz October 11 Late 2022"]
[White "Tayar, Jonathan"]
[Black "Castella Garcia, Fausto"]
[WhiteFideId "2606534"]
[BlackFideId "3501922"]
[WhiteElo "2647"]
[BlackElo "2455"]
[Result "1-0"]
[Round "04"]
[TimeControl "180+1"]
[Date "2022.10.12"]
[WhiteClock "0:00:12"]
[BlackClock "0:00:05"]

1. e4 {[%clk 0:03:00]}  c5 {[%clk 0:02:59]} 2. Nf3 {[%clk 0:02:56]}  d6 {[%clk 0:02:59]} 3. d4 {[%clk 0:02:56]}  cxd4 {[%clk 0:02:59]} 4. Nxd4 {[%clk 0:02:57]}  Nf6 {[%clk 0:02:59]} 5. Nc3 {[%clk 0:02:57]}  g6 {[%clk 0:03:00]} 6. Be3 {[%clk 0:02:57]}  Bg7 {[%clk 0:03:00]} 7. f3 {[%clk 0:02:58]}  O-O {[%clk 0:03:00]} 8. Qd2 {[%clk 0:02:58]}  Nc6 {[%clk 0:03:00]} 9. O-O-O {[%clk 0:02:58]}  d5 {[%clk 0:03:00]} 10. exd5 {[%clk 0:02:58]}  Nxd5 {[%clk 0:02:59]} 11. Nxc6 {[%clk 0:02:58]}  bxc6 {[%clk 0:02:59]} 12. Bd4 {[%clk 0:02:58]}  Bxd4 {[%clk 0:03:00]} 13. Qxd4 {[%clk 0:02:57]}  Qb6 {[%clk 0:03:00]} 14. Na4 {[%clk 0:02:57]}  Qa5 {[%clk 0:02:58]} 15. b3 {[%clk 0:02:55]}  Bf5 {[%clk 0:02:58]} 16. Qc5 {[%clk 0:02:52]}  Qxc5 {[%clk 0:02:53]} 17. Nxc5 {[%clk 0:02:51]}  Bxc2 {[%clk 0:02:26]} 18. Kxc2 {[%clk 0:02:47]}  Ne3+ {[%clk 0:02:26]} 19. Kc1 {[%clk 0:02:47]}  Nxd1 {[%clk 0:02:26]} 20. Kxd1 {[%clk 0:02:48]}  Rfd8+ {[%clk 0:02:25]} 21. Kc2 {[%clk 0:02:40]}  Rd5 {[%clk 0:02:13]} 22. Ne4 {[%clk 0:02:33]}  a5 {[%clk 0:01:59]} 23. Bc4 {[%clk 0:02:30]}  Rd4 {[%clk 0:01:58]} 24. Kc3 {[%clk 0:02:22]}  Rad8 {[%clk 0:01:57]} 25. Re1 {[%clk 0:02:15]}  e6 {[%clk 0:01:33]} 26. g4 {[%clk 0:02:13]}  h6 {[%clk 0:01:30]} 27. h4 {[%clk 0:02:12]}  Kg7 {[%clk 0:01:27]} 28. g5 {[%clk 0:02:10]}  hxg5 {[%clk 0:01:27]} 29. hxg5 {[%clk 0:02:11]}  Rd1 {[%clk 0:01:23]} 30. Rxd1 {[%clk 0:02:03]}  Rxd1 {[%clk 0:01:23]} 31. a4 {[%clk 0:01:56]}  Kf8 {[%clk 0:01:22]} 32. Be2 {[%clk 0:01:53]}  Re1 {[%clk 0:01:20]} 33. Kd2 {[%clk 0:01:52]}  Rb1 {[%clk 0:01:19]} 34. Kc2 {[%clk 0:01:46]}  Re1 {[%clk 0:01:17]} 35. Kd3 {[%clk 0:01:38]}  Rb1 {[%clk 0:01:12]} 36. Kc4 {[%clk 0:01:31]}  Rc1+ {[%clk 0:01:07]} 37. Kd4 {[%clk 0:01:30]}  Ke7 {[%clk 0:01:04]} 38. Bc4 {[%clk 0:01:29]}  Kd7 {[%clk 0:00:57]} 39. Ke5 {[%clk 0:01:29]}  Ke7 {[%clk 0:00:53]} 40. Kf4 {[%clk 0:01:17]}  Re1 {[%clk 0:00:46]} 41. Ke5 {[%clk 0:01:13]}  Re3 {[%clk 0:00:44]} 42. Kf4 {[%clk 0:01:11]}  Re1 {[%clk 0:00:43]} 43. Nc5 {[%clk 0:01:05]}  e5+ {[%clk 0:00:36]} 44. Kg3 {[%clk 0:01:05]}  f5 {[%clk 0:00:31]} 45. gxf6+ {[%clk 0:01:00]}  Kxf6 {[%clk 0:00:31]} 46. Nb7 {[%clk 0:00:50]}  e4 {[%clk 0:00:27]} 47. Kf2 {[%clk 0:00:20]}  Rb1 {[%clk 0:00:16]} 48. fxe4 {[%clk 0:00:20]}  Ke5 {[%clk 0:00:15]} 49. Nxa5 {[%clk 0:00:20]}  Kxe4 {[%clk 0:00:15]} 50. Nxc6 {[%clk 0:00:20]}  Rb2+ {[%clk 0:00:14]} 51. Kg3 {[%clk 0:00:20]}  g5 {[%clk 0:00:14]} 52. a5 {[%clk 0:00:17]}  Ra2 {[%clk 0:00:13]} 53. a6 {[%clk 0:00:17]}  Kf5 {[%clk 0:00:10]} 54. Nb4 {[%clk 0:00:15]}  Ra1 {[%clk 0:00:08]} 55. Bb5 {[%clk 0:00:13]}  g4 {[%clk 0:00:06]} 56. Ba4 {[%clk 0:00:13]}  Rd1 {[%clk 0:00:05]} 57. a7 {[%clk 0:00:12]}  Rd8 {[%clk 0:00:05]} 58. Bc6 {[%clk 0:00:12]} 1-0


[Site "https://www.chess.com"]

[Event "Titled Tuesday Blitz October 11 Late 2022"]
[White "Thiel, Thomas"]
[Black "Roberson, Peter T"]
[WhiteFideId "4615964"]
[BlackFideId "412384"]
[WhiteElo "2317"]
[BlackElo "2346"]
[Result "0-1"]
[Round "04"]
[TimeControl "180+1"]
[Date "2022.10.12"]
[WhiteClock "0:00:01"]
[BlackClock "0:01:04"]

1. e4 {[%clk 0:03:00]}  d6 {[%clk 0:03:00]} 2. d4 {[%clk 0:02:59]}  Nf6 {[%clk 0:02:59]} 3. Nc3 {[%clk 0:02:59]}  c6 {[%clk 0:02:59]} 4. f4 {[%clk 0:02:57]}  Qa5 {[%clk 0:02:58]} 5. e5 {[%clk 0:02:57]}  Ne4 {[%clk 0:02:58]} 6. Qf3 {[%clk 0:02:57]}  f5 {[%clk 0:02:58]} 7. Bd3 {[%clk 0:02:52]}  Na6 {[%clk 0:02:56]} 8. Ne2 {[%clk 0:02:49]}  Nb4 {[%clk 0:02:56]} 9. O-O {[%clk 0:02:47]}  Nxd3 {[%clk 0:02:53]} 10. cxd3 {[%clk 0:02:44]}  Nxc3 {[%clk 0:02:54]} 11. bxc3 {[%clk 0:02:37]}  Be6 {[%clk 0:02:53]} 12. c4 {[%clk 0:02:34]}  g6 {[%clk 0:02:50]} 13. a4 {[%clk 0:02:14]}  d5 {[%clk 0:02:44]} 14. cxd5 {[%clk 0:01:48]}  Bxd5 {[%clk 0:02:44]} 15. Qe3 {[%clk 0:01:48]}  e6 {[%clk 0:02:44]} 16. Bd2 {[%clk 0:01:48]}  Bb4 {[%clk 0:02:43]} 17. Bxb4 {[%clk 0:01:44]}  Qxb4 {[%clk 0:02:44]} 18. Rfb1 {[%clk 0:01:41]}  Qe7 {[%clk 0:02:45]} 19. Nc3 {[%clk 0:01:38]}  O-O {[%clk 0:02:44]} 20. Nxd5 {[%clk 0:01:36]}  cxd5 {[%clk 0:02:42]} 21. Rb5 {[%clk 0:01:34]}  Rfc8 {[%clk 0:02:39]} 22. h3 {[%clk 0:01:30]}  Rc7 {[%clk 0:02:35]} 23. Rc5 {[%clk 0:01:24]}  Rac8 {[%clk 0:02:32]} 24. Rac1 {[%clk 0:01:22]}  b6 {[%clk 0:02:30]} 25. Rxc7 {[%clk 0:01:11]}  Rxc7 {[%clk 0:02:31]} 26. Rxc7 {[%clk 0:01:10]}  Qxc7 {[%clk 0:02:32]} 27. Qd2 {[%clk 0:01:08]}  Qc6 {[%clk 0:02:25]} 28. Qd1 {[%clk 0:00:57]}  Qc3 {[%clk 0:02:22]} 29. Qf3 {[%clk 0:00:40]}  Qxd4+ {[%clk 0:02:18]} 30. Kh2 {[%clk 0:00:40]}  Qxa4 {[%clk 0:02:19]} 31. Qg3 {[%clk 0:00:36]}  Qd7 {[%clk 0:01:52]} 32. d4 {[%clk 0:00:32]}  a5 {[%clk 0:01:47]} 33. Qb3 {[%clk 0:00:31]}  b5 {[%clk 0:01:45]} 34. Qa3 {[%clk 0:00:25]}  a4 {[%clk 0:01:43]} 35. Qc5 {[%clk 0:00:25]}  Kf7 {[%clk 0:01:39]} 36. h4 {[%clk 0:00:22]}  Qe7 {[%clk 0:01:34]} 37. Qxb5 {[%clk 0:00:20]}  Qxh4+ {[%clk 0:01:34]} 38. Kg1 {[%clk 0:00:15]}  Qe1+ {[%clk 0:01:30]} 39. Kh2 {[%clk 0:00:14]}  Qh4+ {[%clk 0:01:31]} 40. Kg1 {[%clk 0:00:13]}  a3 {[%clk 0:01:32]} 41. Qb7+ {[%clk 0:00:07]}  Qe7 {[%clk 0:01:31]} 42. Qa6 {[%clk 0:00:07]}  h6 {[%clk 0:01:23]} 43. Kf2 {[%clk 0:00:06]}  g5 {[%clk 0:01:20]} 44. g3 {[%clk 0:00:06]}  gxf4 {[%clk 0:01:17]} 45. gxf4 {[%clk 0:00:07]}  Qh4+ {[%clk 0:01:16]} 46. Kg2 {[%clk 0:00:07]}  Qg4+ {[%clk 0:01:16]} 47. Kh1 {[%clk 0:00:03]}  Qf3+ {[%clk 0:01:07]} 48. Kg1 {[%clk 0:00:03]}  Qe3+ {[%clk 0:01:05]} 49. Kh1 {[%clk 0:00:03]}  Qe4+ {[%clk 0:01:04]} 50. Kg1 {[%clk 0:00:01]}  Qxd4+ {[%clk 0:01:04]} 0-1


[Site "https://www.chess.com"]

[Event "Titled Tuesday Blitz October 11 Late 2022"]
[White "Thomforde-Toates, Noah"]
[Black "Carlsen, Magnus"]
[WhiteFideId "30951992"]
[BlackFideId "1503014"]
[WhiteElo "2695"]
[BlackElo "2830"]
[Result "0-1"]
[Round "04"]
[TimeControl "180+1"]
[Date "2022.10.11"]
[WhiteClock "0:00:42"]
[BlackClock "0:02:28"]

1. c4 {[%clk 0:03:00]}  g5 {[%clk 0:02:59]} 2. Nc3 {[%clk 0:02:59]}  Bg7 {[%clk 0:02:59]} 3. d3 {[%clk 0:02:59]}  h6 {[%clk 0:02:59]} 4. e3 {[%clk 0:02:55]}  c5 {[%clk 0:02:59]} 5. Nf3 {[%clk 0:02:54]}  Nc6 {[%clk 0:02:59]} 6. Be2 {[%clk 0:02:55]}  d6 {[%clk 0:02:59]} 7. Nd2 {[%clk 0:02:54]}  f5 {[%clk 0:02:58]} 8. h4 {[%clk 0:02:54]}  Bxc3 {[%clk 0:02:58]} 9. Bh5+ {[%clk 0:02:54]}  Kd7 {[%clk 0:02:57]} 10. bxc3 {[%clk 0:02:53]}  Nf6 {[%clk 0:02:57]} 11. Be2 {[%clk 0:02:52]}  Kc7 {[%clk 0:02:57]} 12. Nf3 {[%clk 0:02:48]}  e5 {[%clk 0:02:53]} 13. Bd2 {[%clk 0:02:37]}  Bd7 {[%clk 0:02:52]} 14. Rb1 {[%clk 0:02:32]}  e4 {[%clk 0:02:52]} 15. Ng1 {[%clk 0:02:25]}  Qe7 {[%clk 0:02:43]} 16. d4 {[%clk 0:02:24]}  b6 {[%clk 0:02:43]} 17. Nh3 {[%clk 0:02:23]}  Rag8 {[%clk 0:02:41]} 18. g3 {[%clk 0:02:19]}  Na5 {[%clk 0:02:41]} 19. h5 {[%clk 0:02:02]}  Qf7 {[%clk 0:02:41]} 20. d5 {[%clk 0:02:00]}  Bc8 {[%clk 0:02:40]} 21. Rb5 {[%clk 0:01:52]}  Bd7 {[%clk 0:02:39]} 22. Rb1 {[%clk 0:01:50]}  Ng4 {[%clk 0:02:39]} 23. Bxg4 {[%clk 0:01:35]}  fxg4 {[%clk 0:02:39]} 24. Ng1 {[%clk 0:01:35]}  Nxc4 {[%clk 0:02:38]} 25. Rh2 {[%clk 0:01:32]}  Qxd5 {[%clk 0:02:37]} 26. Bc1 {[%clk 0:01:28]}  Qe6 {[%clk 0:02:37]} 27. Qb3 {[%clk 0:01:21]}  Rf8 {[%clk 0:02:38]} 28. Qc2 {[%clk 0:01:15]}  Rf5 {[%clk 0:02:35]} 29. Qb3 {[%clk 0:01:15]}  Rhf8 {[%clk 0:02:35]} 30. Qc2 {[%clk 0:01:10]}  Ne5 {[%clk 0:02:33]} 31. Rb2 {[%clk 0:00:45]}  Nd3+ {[%clk 0:02:31]} 32. Kd1 {[%clk 0:00:42]}  Qc4 {[%clk 0:02:28]} 0-1


[Site "https://www.chess.com"]